fUST/lending_fUST_20250601
["ID","MTS","AMOUNT","RATE_DAILY","PERIOD"]
[363385863,1748712642535,-430.0,0.00016986,2]
[363385864,1748712642545,-430.0,0.00016986,2]
[363385865,1748712642555,-430.0,0.00016986,2]
[363385866,1748712642565,-430.0,0.00016986,2]
[363385867,1748712642575,-430.0,0.00016986,2]
[363385868,1748712642585,-430.0,0.00016986,2]
[363385869,1748712642594,-430.0,0.00016986,2]
[363385870,1748712642604,-695.71,0.00016986,2]
[363385872,1748712642614,-430.0,0.00016986,2]
[363385873,1748712642624,-430.0,0.00016986,2]
[363385874,1748712642633,-430.0,0.00016986,2]
[363385875,1748712642643,-430.0,0.00016986,2]
[363385876,1748712642653,-430.0,0.00016986,2]
[363385877,1748712642662,-1440.05,0.00016986,2]
[363385878,1748712642672,-430.0,0.00016986,2]
[363385879,1748712642682,-430.0,0.00016986,2]
[363385880,1748712642691,-684.51,0.00016986,2]
[363385881,1748712642701,-430.0,0.00016986,2]
[363385882,1748712642710,-430.0,0.00016986,2]
[363385884,1748712642720,-634.59,0.00016986,2]
[363385886,1748712642730,-430.0,0.00016986,2]
[363385888,1748712642739,-430.0,0.00016986,2]
[363385890,1748712642749,-430.0,0.00016986,2]
[363385893,1748712642758,-430.0,0.00016986,2]
[363385896,1748712642768,-529.12341231,0.00016986,2]
[363385899,1748712642777,-430.0,0.00016986,2]
[363385901,1748712642787,-253.76595677,0.00016986,2]
[363385903,1748712642797,-1228.18,0.00016986,2]
[363385904,1748712642806,-412.38929743,0.00016986,2]
[363385905,1748712642815,-430.0,0.00016986,2]
[363385906,1748712642825,-430.0,0.00016986,2]
[363385907,1748712642834,-430.0,0.00016986,2]
[363385908,1748712642844,-430.0,0.00016986,2]
[363385909,1748712642854,-430.0,0.00016986,2]
[363385910,1748712642863,-465.45,0.00016986,2]
[363385911,1748712642873,-430.0,0.00016986,2]
[363385912,1748712642883,-430.0,0.00016986,2]
[363385913,1748712642893,-430.0,0.00016986,2]
[363385914,1748712642903,-430.0,0.00016986,2]
[363385915,1748712642915,-430.0,0.00016986,2]
[363385916,1748712642927,-430.0,0.00016986,2]
[363385917,1748712642937,-433.62,0.00016986,2]
[363385918,1748712642946,-747.08,0.00016986,2]
[363385919,1748712642956,-432.09,0.00016986,2]
[363385920,1748712642966,-500.0,0.00017023,2]
[363385921,1748712642976,-470.98260152,0.00017023,2]
[363385922,1748712642986,-507.7224305,0.00017033,2]
[363385923,1748712642995,-500.82002908,0.00017033,2]
[363385924,1748712643005,-438.97817513,0.00017033,2]
[363385925,1748712643015,-500.0,0.0001717,2]
[363385926,1748712643025,-831.76366455,0.00017176,2]
[363385928,1748712643036,-151.0,0.00017176,2]
[363385930,1748712643046,-461.43719435,0.0001724,2]
[363385932,1748712643056,-156.16052953,0.00017253,2]
[363385933,1748712643066,-420.0,0.00017256,2]
[363385934,1748712643076,-420.0,0.00017256,2]
[363385935,1748712643086,-151.0,0.0001726,2]
[363385936,1748712643095,-151.0,0.0001726,2]
[363385937,1748712643106,-430.0,0.0001726,2]
[363385938,1748712643116,-445.85260338,0.0001726,2]
[363385939,1748712643129,-495.52381841,0.0001726,2]
[363385940,1748712643139,-430.0,0.0001726,2]
[363385941,1748712643149,-168.72,0.0001726,2]
[363385942,1748712643159,-430.0,0.0001726,2]
[363385943,1748712643169,-430.0,0.0001726,2]
[363385944,1748712643180,-430.0,0.0001726,2]
[363385945,1748712643190,-290.0,0.0001726,2]
[363385946,1748712643202,-430.0,0.0001726,2]
[363385947,1748712643213,-430.0,0.0001726,2]
[363385948,1748712643223,-430.0,0.0001726,2]
[363385949,1748712643233,-936.13,0.0001726,2]
[363385950,1748712643242,-677.04,0.0001726,2]
[363385951,1748712643252,-778.46,0.0001726,2]
[363385953,1748712643262,-430.0,0.0001726,2]
[363385954,1748712643271,-430.0,0.0001726,2]
[363385955,1748712643280,-430.0,0.0001726,2]
[363385957,1748712643290,-430.0,0.0001726,2]
[363385959,1748712643300,-430.0,0.0001726,2]
[363385961,1748712643309,-430.0,0.0001726,2]
[363385963,1748712643319,-430.0,0.0001726,2]
[363385964,1748712643329,-430.0,0.0001726,2]
[363385966,1748712643339,-430.0,0.0001726,2]
[363385967,1748712643349,-695.71,0.0001726,2]
[363385968,1748712643359,-430.0,0.0001726,2]
[363385969,1748712643370,-430.0,0.0001726,2]
[363385970,1748712643379,-430.0,0.0001726,2]
[363385971,1748712643389,-430.0,0.0001726,2]
[363385972,1748712643399,-430.0,0.0001726,2]
[363385973,1748712643409,-1440.05,0.0001726,2]
[363385974,1748712643419,-430.0,0.0001726,2]
[363385975,1748712643429,-430.0,0.0001726,2]
[363385976,1748712643439,-684.51,0.0001726,2]
[363385977,1748712643448,-430.0,0.0001726,2]
[363385978,1748712643458,-430.0,0.0001726,2]
[363385979,1748712643468,-634.59,0.0001726,2]
[363385980,1748712643478,-430.0,0.0001726,2]
[363385981,1748712643488,-430.0,0.0001726,2]
[363385982,1748712643499,-430.0,0.0001726,2]
[363385983,1748712643510,-1228.18,0.0001726,2]
[363385984,1748712643519,-430.0,0.0001726,2]
[363385985,1748712643529,-430.0,0.0001726,2]
[363385986,1748712643539,-430.0,0.0001726,2]
[363385987,1748712643549,-163.99,0.0001726,2]
[363385988,1748712643559,-430.0,0.0001726,2]
[363385989,1748712643570,-465.45,0.0001726,2]
[363385990,1748712643580,-430.0,0.0001726,2]
[363385991,1748712643590,-430.0,0.0001726,2]
[363385992,1748712643600,-430.0,0.0001726,2]
[363385993,1748712643610,-430.0,0.0001726,2]
[363385994,1748712643621,-430.0,0.0001726,2]
[363385995,1748712643631,-433.62,0.0001726,2]
[363385996,1748712643641,-747.08,0.0001726,2]
[363385997,1748712643651,-432.09,0.0001726,2]
[363385998,1748712643661,-571.77089163,0.0001729,2]
[363385999,1748712643671,-501.61333408,0.0001729,2]
[363386000,1748712643682,-500.0,0.0001729,2]
[363386001,1748712643692,-502.25716102,0.0001729,2]
[363386002,1748712643702,-831.76366455,0.00017452,2]
[363386003,1748712643712,-500.0,0.00017457,2]
[363386004,1748712643723,-500.0,0.00017504,2]
[363386005,1748712643733,-151.0,0.00017534,2]
[363386006,1748712643743,-315.87,0.00017534,2]
[363386007,1748712643753,-430.0,0.00017534,2]
[363386008,1748712643763,-577.53,0.00017534,2]
[363386009,1748712643773,-430.0,0.00017534,2]
[363386010,1748712643784,-430.0,0.00017534,2]
[363386011,1748712643794,-274.6,0.00017534,2]
[363386012,1748712643803,-936.13,0.00017534,2]
[363386013,1748712643813,-677.04,0.00017534,2]
[363386014,1748712643823,-778.46,0.00017534,2]
[363386015,1748712643833,-430.0,0.00017534,2]
[363386016,1748712643843,-430.0,0.00017534,2]
[363386017,1748712643852,-430.0,0.00017534,2]
[363386018,1748712643862,-430.0,0.00017534,2]
[363386019,1748712643872,-430.0,0.00017534,2]
[363386020,1748712643882,-282.67,0.00017534,2]
[363386021,1748712643892,-430.0,0.00017534,2]
[363386022,1748712643902,-695.71,0.00017534,2]
[363386023,1748712643912,-430.0,0.00017534,2]
[363386024,1748712643922,-430.0,0.00017534,2]
[363386025,1748712643932,-430.0,0.00017534,2]
[363386026,1748712643942,-430.0,0.00017534,2]
[363386027,1748712643952,-1440.05,0.00017534,2]
[363386028,1748712643962,-430.0,0.00017534,2]
[363386029,1748712643972,-430.0,0.00017534,2]
[363386030,1748712643982,-684.51,0.00017534,2]
[363386031,1748712643992,-430.0,0.00017534,2]
[363386032,1748712644002,-430.0,0.00017534,2]
[363386033,1748712644012,-634.59,0.00017534,2]
[363386034,1748712644022,-430.0,0.00017534,2]
[363386035,1748712644032,-430.0,0.00017534,2]
[363386036,1748712644042,-312.0,0.00017534,2]
[363386037,1748712644051,-1228.18,0.00017534,2]
[363386038,1748712644061,-430.0,0.00017534,2]
[363386039,1748712644071,-430.0,0.00017534,2]
[363386040,1748712644081,-211.80361192,0.00017534,2]
[363386041,1748712644091,-430.0,0.00017534,2]
[363386042,1748712644102,-465.45,0.00017534,2]
[363386043,1748712644111,-430.0,0.00017534,2]
[363386044,1748712644125,-430.0,0.00017534,2]
[363386045,1748712644135,-430.0,0.00017534,2]
[363386046,1748712644144,-430.0,0.00017534,2]
[363386047,1748712644155,-430.0,0.00017534,2]
[363386048,1748712644166,-433.62,0.00017534,2]
[363386049,1748712644176,-747.08,0.00017534,2]
[363386050,1748712644186,-432.09,0.00017534,2]
[363386051,1748712644197,-831.76366455,0.00017728,2]
[363386052,1748712644207,-151.0,0.00017808,2]
[363386053,1748712644217,-430.0,0.00017808,2]
[363386054,1748712644227,-430.0,0.00017808,2]
[363386055,1748712644237,-936.13,0.00017808,2]
[363386056,1748712644247,-677.04,0.00017808,2]
[363386057,1748712644257,-778.46,0.00017808,2]
[363386058,1748712644267,-430.0,0.00017808,2]
[363386059,1748712644277,-430.0,0.00017808,2]
[363386060,1748712644287,-430.0,0.00017808,2]
[363386061,1748712644297,-157.53,0.00017808,2]
[363386062,1748712644307,-430.0,0.00017808,2]
[363386063,1748712644317,-695.71,0.00017808,2]
[363386064,1748712644327,-430.0,0.00017808,2]
[363386065,1748712644337,-430.0,0.00017808,2]
[363386066,1748712644347,-430.0,0.00017808,2]
[363386067,1748712644357,-430.0,0.00017808,2]
[363386068,1748712644366,-1440.05,0.00017808,2]
[363386069,1748712644376,-430.0,0.00017808,2]
[363386070,1748712644387,-430.0,0.00017808,2]
[363386071,1748712644397,-684.51,0.00017808,2]
[363386072,1748712644408,-430.0,0.00017808,2]
[363386073,1748712644418,-575.20142235,0.00017808,2]
[363386074,1748712644428,-634.59,0.00017808,2]
[363386075,1748712644439,-430.0,0.00017808,2]
[363386076,1748712644448,-430.0,0.00017808,2]
[363386077,1748712644458,-1228.18,0.00017808,2]
[363386078,1748712644469,-430.0,0.00017808,2]
[363386079,1748712644478,-430.0,0.00017808,2]
[363386080,1748712644489,-430.0,0.00017808,2]
[363386081,1748712644499,-465.45,0.00017808,2]
[363386082,1748712644510,-430.0,0.00017808,2]
[363386083,1748712644520,-430.0,0.00017808,2]
[363386084,1748712644529,-430.0,0.00017808,2]
[363386085,1748712644540,-363.87478374,0.00017808,2]
[363386086,1748712644550,-430.0,0.00017808,2]
[363386087,1748712644560,-433.62,0.00017808,2]
[363386088,1748712644571,-747.08,0.00017808,2]
[363386089,1748712644581,-432.09,0.00017808,2]
[363386090,1748712644591,-219.106439,0.00017831,2]
[363386091,1748712644602,-126129.05134492,0.00018,2]
[363386092,1748712644612,-39386.29401867,0.00018,2]
[363386093,1748712644622,-18985.37046298,0.00018,2]
[363386094,1748712644632,-831.76366455,0.00018003,2]
[363386095,1748712644642,-500.0,0.00018004,2]
[363386096,1748712644652,-160.0,0.00018046,2]
[363386097,1748712644662,-160.0,0.00018052,2]
[363386098,1748712644672,-160.0,0.00018052,2]
[363386099,1748712644682,-160.0,0.00018052,2]
[363386100,1748712644692,-212.77096907,0.00018052,2]
[363386101,1748712644702,-842.5625,0.00018052,2]
[363386102,1748712644712,-229.3428821,0.00018052,2]
[363386103,1748712644721,-160.0,0.00018052,2]
[363386104,1748712644731,-423.4608169,0.00018052,2]
[363386105,1748712644742,-160.0,0.00018052,2]
[363386106,1748712644752,-500.0,0.00018073,2]
[363386107,1748712644762,-151.0,0.00018082,2]
[363386108,1748712644772,-430.0,0.00018082,2]
[363386109,1748712644781,-430.0,0.00018082,2]
[363386110,1748712644791,-936.13,0.00018082,2]
[363386111,1748712644802,-677.04,0.00018082,2]
[363386112,1748712644812,-778.46,0.00018082,2]
[363386113,1748712644822,-430.0,0.00018082,2]
[363386114,1748712644832,-430.0,0.00018082,2]
[363386115,1748712644842,-430.0,0.00018082,2]
[363386116,1748712644852,-430.0,0.00018082,2]
[363386117,1748712644862,-695.71,0.00018082,2]
[363386118,1748712644872,-430.0,0.00018082,2]
[363386119,1748712644882,-430.0,0.00018082,2]
[363386120,1748712644892,-430.0,0.00018082,2]
[363386121,1748712644902,-430.0,0.00018082,2]
[363386122,1748712644912,-1440.05,0.00018082,2]
[363386123,1748712644922,-430.0,0.00018082,2]
[363386124,1748712644933,-430.0,0.00018082,2]
[363386125,1748712644943,-684.51,0.00018082,2]
[363386126,1748712644952,-430.0,0.00018082,2]
[363386127,1748712644963,-634.59,0.00018082,2]
[363386128,1748712644972,-430.0,0.00018082,2]
[363386129,1748712644983,-430.0,0.00018082,2]
[363386130,1748712644994,-1228.18,0.00018082,2]
[363386131,1748712645004,-430.0,0.00018082,2]
[363386132,1748712645015,-430.0,0.00018082,2]
[363386133,1748712645026,-430.0,0.00018082,2]
[363386134,1748712645167,-465.45,0.00018082,2]
[363386135,1748712645179,-430.0,0.00018082,2]
[363386136,1748712645189,-430.0,0.00018082,2]
[363386137,1748712645199,-430.0,0.00018082,2]
[363386138,1748712645209,-430.0,0.00018082,2]
[363386139,1748712645219,-433.62,0.00018082,2]
[363386140,1748712645229,-747.08,0.00018082,2]
[363386141,1748712645238,-432.09,0.00018082,2]
[363386142,1748712645248,-180.9251505,0.00018115,2]
[363386143,1748712645258,-227.7719949,0.0001814,2]
[363386144,1748712645267,-831.76366455,0.00018279,2]
[363386145,1748712645278,-160.0,0.00018355,2]
[363386146,1748712645288,-430.0,0.00018356,2]
[363386147,1748712645297,-430.0,0.00018356,2]
[363386148,1748712645307,-936.13,0.00018356,2]
[363386149,1748712645317,-677.04,0.00018356,2]
[363386150,1748712645327,-778.46,0.00018356,2]
[363386151,1748712645336,-430.0,0.00018356,2]
[363386152,1748712645346,-430.0,0.00018356,2]
[363386153,1748712645355,-398.26060521,0.00018356,2]
[363386154,1748712645365,-430.0,0.00018356,2]
[363386155,1748712645375,-695.71,0.00018356,2]
[363386156,1748712645384,-430.0,0.00018356,2]
[363386157,1748712645394,-430.0,0.00018356,2]
[363386158,1748712645404,-430.0,0.00018356,2]
[363386159,1748712645414,-430.0,0.00018356,2]
[363386160,1748712645424,-1440.05,0.00018356,2]
[363386161,1748712645434,-430.0,0.00018356,2]
[363386162,1748712645444,-430.0,0.00018356,2]
[363386163,1748712645454,-684.51,0.00018356,2]
[363386164,1748712645464,-430.0,0.00018356,2]
[363386165,1748712645474,-634.59,0.00018356,2]
[363386166,1748712645484,-318.16060574,0.00018356,2]
[363386167,1748712645493,-430.0,0.00018356,2]
[363386168,1748712645503,-1228.18,0.00018356,2]
[363386169,1748712645513,-443.14009233,0.00018356,2]
[363386170,1748712645523,-430.0,0.00018356,2]
[363386171,1748712645533,-430.0,0.00018356,2]
[363386172,1748712645542,-465.45,0.00018356,2]
[363386173,1748712645552,-430.0,0.00018356,2]
[363386174,1748712645562,-430.0,0.00018356,2]
[363386175,1748712645572,-430.0,0.00018356,2]
[363386176,1748712645582,-430.0,0.00018356,2]
[363386177,1748712645591,-433.62,0.00018356,2]
[363386178,1748712645602,-747.08,0.00018356,2]
[363386179,1748712645611,-432.09,0.00018356,2]
[363386180,1748712645621,-461.43719435,0.00018381,2]
[363386181,1748712645631,-831.76366455,0.00018555,2]
[363386182,1748712645641,-430.0,0.0001863,2]
[363386183,1748712645651,-430.0,0.0001863,2]
[363386184,1748712645660,-936.13,0.0001863,2]
[363386185,1748712645670,-677.04,0.0001863,2]
[363386186,1748712645680,-778.46,0.0001863,2]
[363386187,1748712645690,-430.0,0.0001863,2]
[363386189,1748712645699,-430.0,0.0001863,2]
[363386191,1748712645709,-430.0,0.0001863,2]
[363386194,1748712645718,-695.71,0.0001863,2]
[363386196,1748712645728,-430.0,0.0001863,2]
[363386197,1748712645738,-430.0,0.0001863,2]
[363386198,1748712645747,-430.0,0.0001863,2]
[363386199,1748712645757,-430.0,0.0001863,2]
[363386200,1748712645767,-1440.05,0.0001863,2]
[363386201,1748712645777,-430.0,0.0001863,2]
[363386202,1748712645787,-430.0,0.0001863,2]
[363386203,1748712645797,-684.51,0.0001863,2]
[363386205,1748712645807,-430.0,0.0001863,2]
[363386207,1748712645817,-634.59,0.0001863,2]
[363386209,1748712645826,-430.0,0.0001863,2]
[363386211,1748712645836,-1228.18,0.0001863,2]
[363386213,1748712645845,-430.0,0.0001863,2]
[363386214,1748712645854,-465.45,0.0001863,2]
[363386216,1748712645864,-430.0,0.0001863,2]
[363386219,1748712645873,-430.0,0.0001863,2]
[363386222,1748712645883,-430.0,0.0001863,2]
[363386224,1748712645893,-430.0,0.0001863,2]
[363386225,1748712645903,-430.0,0.0001863,2]
[363386227,1748712645912,-433.62,0.0001863,2]
[363386229,1748712645922,-747.08,0.0001863,2]
[363386231,1748712645933,-432.09,0.0001863,2]
[363386233,1748712645943,-151.0,0.00018653,2]
[363386235,1748712645952,-831.76366455,0.00018831,2]
[363386237,1748712645961,-587.0,0.00018871,2]
[363386239,1748712645971,-587.0,0.00018871,2]
[363386241,1748712645981,-1155.83022901,0.000189,2]
[363386242,1748712645991,-430.0,0.00018904,2]
[363386243,1748712646000,-430.0,0.00018904,2]
[363386244,1748712646010,-936.13,0.00018904,2]
[363386245,1748712646020,-677.04,0.00018904,2]
[363386246,1748712646030,-778.46,0.00018904,2]
[363386247,1748712646039,-430.0,0.00018904,2]
[363386248,1748712646049,-430.0,0.00018904,2]
[363386249,1748712646059,-480.91,0.00018904,2]
[363386250,1748712646068,-695.71,0.00018904,2]
[363386251,1748712646078,-430.0,0.00018904,2]
[363386252,1748712646088,-430.0,0.00018904,2]
[363386253,1748712646098,-430.0,0.00018904,2]
[363386254,1748712646108,-430.0,0.00018904,2]
[363386255,1748712646118,-1440.05,0.00018904,2]
[363386256,1748712646131,-430.0,0.00018904,2]
[363386257,1748712646141,-430.0,0.00018904,2]
[363386258,1748712646150,-684.51,0.00018904,2]
[363386259,1748712646160,-430.0,0.00018904,2]
[363386260,1748712646171,-634.59,0.00018904,2]
[363386261,1748712646182,-430.0,0.00018904,2]
[363386262,1748712646192,-1228.18,0.00018904,2]
[363386263,1748712646202,-430.0,0.00018904,2]
[363386264,1748712646211,-465.45,0.00018904,2]
[363386265,1748712646221,-430.0,0.00018904,2]
[363386266,1748712646231,-430.0,0.00018904,2]
[363386267,1748712646240,-430.0,0.00018904,2]
[363386268,1748712646250,-215.0,0.00018904,2]
[363386269,1748712646261,-430.0,0.00018904,2]
[363386270,1748712646271,-433.62,0.00018904,2]
[363386271,1748712646280,-747.08,0.00018904,2]
[363386272,1748712646290,-432.09,0.00018904,2]
[363386273,1748712646300,-5208.83,0.00018985,2]
[363386274,1748712646310,-500.0,0.00019025,2]
[363386275,1748712646319,-831.76366455,0.00019107,2]
[363386276,1748712646329,-151.0,0.0001917,2]
[363386277,1748712646338,-500.0,0.00019178,2]
[363386278,1748712646348,-500.0,0.00019178,2]
[363386279,1748712646357,-500.0,0.00019178,2]
[363386280,1748712646367,-500.0,0.00019178,2]
[363386281,1748712646377,-500.0,0.00019178,2]
[363386282,1748712646386,-322.21174145,0.00019178,2]
[363386283,1748712646395,-430.0,0.00019178,2]
[363386285,1748712646405,-430.0,0.00019178,2]
[363386286,1748712646414,-936.13,0.00019178,2]
[363386287,1748712646423,-677.04,0.00019178,2]
[363386288,1748712646433,-778.46,0.00019178,2]
[363386289,1748712646443,-430.0,0.00019178,2]
[363386290,1748712646452,-430.0,0.00019178,2]
[363386291,1748712646462,-430.0,0.00019178,2]
[363386292,1748712646471,-430.0,0.00019178,2]
[363386293,1748712646481,-430.0,0.00019178,2]
[363386294,1748712646490,-430.0,0.00019178,2]
[363386295,1748712646500,-430.0,0.00019178,2]
[363386296,1748712646513,-302.20583078,0.00019178,2]
[363386297,1748712646523,-695.71,0.00019178,2]
[363386298,1748712646532,-430.0,0.00019178,2]
[363386299,1748712646542,-430.0,0.00019178,2]
[363386300,1748712646552,-496.2215543,0.00019178,2]
[363386301,1748712646562,-549.13041047,0.00019178,2]
[363386302,1748712646571,-1440.05,0.00019178,2]
[363386303,1748712646581,-430.0,0.00019178,2]
[363386304,1748712646591,-430.0,0.00019178,2]
[363386305,1748712646601,-684.51,0.00019178,2]
[363386306,1748712646611,-430.0,0.00019178,2]
[363386307,1748712646620,-634.59,0.00019178,2]
[363386308,1748712646630,-430.0,0.00019178,2]
[363386309,1748712646640,-1228.18,0.00019178,2]
[363386310,1748712646650,-292.14,0.00019178,2]
[363386312,1748712646660,-465.45,0.00019178,2]
[363386313,1748712646669,-430.0,0.00019178,2]
[363386315,1748712646678,-430.0,0.00019178,2]
[363386316,1748712646689,-430.0,0.00019178,2]
[363386317,1748712646698,-430.0,0.00019178,2]
[363386318,1748712646708,-433.62,0.00019178,2]
[363386319,1748712646717,-747.08,0.00019178,2]
[363386320,1748712646726,-432.09,0.00019178,2]
[363386321,1748712646735,-500.0,0.00019178,2]
[363386322,1748712646745,-500.0,0.00019178,2]
[363386323,1748712646754,-500.0,0.00019178,2]
[363386324,1748712646763,-500.0,0.00019178,2]
[363386325,1748712646773,-500.0,0.00019178,2]
[363386326,1748712646782,-161.198787,0.00019178,2]
[363386327,1748712646792,-151.0,0.00019288,2]
[363386328,1748712646801,-151.0,0.00019288,2]
[363386329,1748712646811,-151.0,0.00019288,2]
[363386330,1748712646820,-500.0,0.00019288,2]
[363386331,1748712646829,-162.87005,0.0001931,2]
[363386332,1748712646839,-151.0,0.00019315,2]
[363386333,1748712646848,-151.0,0.00019315,2]
[363386334,1748712646857,-500.0,0.00019315,2]
[363386335,1748712646866,-27903.03763274,0.00019329,2]
[363386336,1748712646876,-203.3482826,0.00019343,2]
[363386337,1748712646886,-198.0,0.00019343,2]
[363386338,1748712646895,-500.0,0.00019343,2]
[363386339,1748712646904,-506.91527344,0.0001937,2]
[363386340,1748712646914,-831.76366455,0.00019383,2]
[363386341,1748712646924,-227.7719949,0.00019393,2]
[363386342,1748712646933,-430.0,0.00019452,2]
[363386343,1748712646943,-430.0,0.00019452,2]
[363386344,1748712646952,-936.13,0.00019452,2]
[363386345,1748712646962,-677.04,0.00019452,2]
[363386346,1748712646971,-778.46,0.00019452,2]
[363386347,1748712646981,-430.0,0.00019452,2]
[363386348,1748712646991,-430.0,0.00019452,2]
[363386349,1748712647001,-695.71,0.00019452,2]
[363386350,1748712647011,-430.0,0.00019452,2]
[363386351,1748712647021,-430.0,0.00019452,2]
[363386352,1748712647030,-1440.05,0.00019452,2]
[363386353,1748712647040,-430.0,0.00019452,2]
[363386354,1748712647049,-430.0,0.00019452,2]
[363386355,1748712647059,-684.51,0.00019452,2]
[363386356,1748712647068,-430.0,0.00019452,2]
[363386357,1748712647078,-634.59,0.00019452,2]
[363386358,1748712647087,-430.0,0.00019452,2]
[363386359,1748712647097,-1228.18,0.00019452,2]
[363386360,1748712647107,-465.45,0.00019452,2]
[363386361,1748712647116,-430.0,0.00019452,2]
[363386362,1748712647130,-430.0,0.00019452,2]
[363386363,1748712647140,-430.0,0.00019452,2]
[363386364,1748712647150,-430.0,0.00019452,2]
[363386365,1748712647159,-433.62,0.00019452,2]
[363386366,1748712647170,-747.08,0.00019452,2]
[363386367,1748712647180,-432.09,0.00019452,2]
[363386368,1748712647190,-461.43719435,0.00019521,2]
[363386369,1748712647200,-831.76366455,0.00019659,2]
[363386370,1748712647210,-160.0,0.00019725,2]
[363386371,1748712647220,-430.0,0.00019726,2]
[363386372,1748712647231,-554.70271479,0.00019726,2]
[363386373,1748712647241,-936.13,0.00019726,2]
[363386374,1748712647251,-677.04,0.00019726,2]
[363386375,1748712647260,-778.46,0.00019726,2]
[363386376,1748712647270,-242.00802877,0.00019726,2]
[363386377,1748712647280,-214.74490726,0.00019726,2]
[363386378,1748712647290,-695.71,0.00019726,2]
[363386379,1748712647299,-430.0,0.00019726,2]
[363386380,1748712647309,-430.0,0.00019726,2]
[363386381,1748712647318,-1440.05,0.00019726,2]
[363386382,1748712647328,-430.0,0.00019726,2]
[363386383,1748712647337,-430.0,0.00019726,2]
[363386384,1748712647347,-684.51,0.00019726,2]
[363386385,1748712647357,-430.0,0.00019726,2]
[363386386,1748712647366,-634.59,0.00019726,2]
[363386387,1748712647376,-372.48854686,0.00019726,2]
[363386388,1748712647385,-1228.18,0.00019726,2]
[363386389,1748712647395,-465.45,0.00019726,2]
[363386390,1748712647404,-433.39897889,0.00019726,2]
[363386391,1748712647413,-430.0,0.00019726,2]
[363386392,1748712647423,-430.0,0.00019726,2]
[363386393,1748712647434,-177.12606412,0.00019726,2]
[363386394,1748712647444,-433.62,0.00019726,2]
[363386395,1748712647454,-747.08,0.00019726,2]
[363386396,1748712647463,-432.09,0.00019726,2]
[363386397,1748712647473,-250.0,0.000198,30]
[363386398,1748712647481,-329.513,0.00019829,2]
[363386399,1748712647490,-180.69465561,0.00019829,2]
[363386400,1748712647500,-500.0,0.00019845,2]
[363386401,1748712647508,-500.0,0.00019845,2]
[363386402,1748712647519,-207.4,0.00019852,2]
[363386403,1748712647528,-10417.66,0.00019889,2]
[363386404,1748712647538,-831.76366455,0.00019934,2]
[363386405,1748712647548,-800.0,0.00019964,2]
[363386406,1748712647557,-500.0,0.00019976,2]
[363386407,1748712647567,-430.0,0.0002,2]
[363386408,1748712647577,-936.13,0.0002,2]
[363386409,1748712647587,-677.04,0.0002,2]
[363386410,1748712647597,-778.46,0.0002,2]
[363386411,1748712647607,-695.71,0.0002,2]